[Event "Moscow Rapid-ch 2018"]
[Site "Moscow"]
[Date "2018.12.09"]
[Round "10"]
[White "Vlasov, Sergey"]
[Black "Tarasov, Danila"]
[Result "0-1"]
[ECO "B31"]
[WhiteElo "2229"]
[BlackElo "1885"]
[Annotator "NA"]
[PlyCount "130"]
[EventDate "2018.12.08"]
[EventType "swiss"]
[EventCountry "RUS"]
[SourceTitle "playchess.com"]
[Source "ChessBase"]
[SourceQuality "1"]
[TimeControl "900+10"]

1. e4 {[%emt 0:00:00]} c5 {[%emt 0:00:00]} 2. Nf3 Nc6 3. Bb5 {[%emt 0:00:00]} g6 {[%emt 0:00:00]} 4. Bxc6 {[%emt 0:00:05]} dxc6 {[%emt 0:00:00]} 5. h3 {[%emt 0:00:02]} Bg7 {[%emt 0:00:00]} 6. Nc3 {[%emt 0:00:01]} e5 {[%emt 0:00:00]} 7. d3 {[%emt 0:00:03]} Qe7 {[%emt 0:00:00]} 8. Be3 {[%emt 0:00:22]} Nf6 {[%emt 0:00:02]} 9. Qd2 {[%emt 0:01:31]} O-O {[%emt 0:00:19]} 10. Nh2 {[%emt 0:00:17]} Rd8 {[%emt 0:00:12]} 11. b3 {[%emt 0:00:47]} b5 {[%emt 0:00:17]} 12. Qe2 {[%emt 0:01:06]} c4 {[%emt 0:00:55]} 13. dxc4 {[%emt 0:00:23]} Qb4 {[%emt 0:02:21]} 14. Bd2 {[%emt 0:00:17]} Bh6 {[%emt 0:00:46]} 15. a3 {[%emt 0:04:27]} Bxd2+ 16. Qxd2 {[%emt 0:00:02]} Rxd2 {[%emt 0:00:36]} 17. axb4 {[%emt 0:00:01]} Rxc2 {[%emt 0:00:06]} 18. Nd1 {[%emt 0:00:25]} Nxe4 {[%emt 0:00:50]} 19. O-O {[%emt 0:00:53]} bxc4 {[%emt 0:01:44]} 20. Ne3 {[%emt 0:00:09]} Rb2 {[%emt 0:00:10]} 21. Nxc4 {[%emt 0:00:08]} Rxb3 {[%emt 0:00:07]} 22. Nxe5 {[%emt 0:00:09]} Rxb4 {[%emt 0:00:34]} 23. Nxc6 {[%emt 0:00:06]} Rb7 {[%emt 0:00:21]} 24. Rfe1 {[%emt 0:01:13]} Nf6 {[%emt 0:00:47]} 25. Nf3 {[%emt 0:01:41]} Bd7 {[%emt 0:00:32]} 26. Na5 {[%emt 0:00:51]} Rb6 {[%emt 0:01:14]} 27. Ne5 {[%emt 0:00:45]} Bb5 {[%emt 0:00:47]} 28. Nac4 {[%emt 0:00:41]} Bxc4 {[%emt 0:01:45]} 29. Nxc4 {[%emt 0:00:01]} Rc6 {[%emt 0:00:13]} 30. Na5 {[%emt 0:00:15]} Rc2 {[%emt 0:00:22]} 31. Rec1 {[%emt 0:00:34]} Rac8 {[%emt 0:00:56]} 32. Rxc2 {[%emt 0:00:14]} Rxc2 {[%emt 0:00:02]} 33. Nb7 {[%emt 0:00:07]} Rc7 {[%emt 0:00:22]} 34. Rxa7 {[%emt 0:00:18]} Kg7 {[%emt 0:00:09]} 35. g4 {[%emt 0:00:15]} Nd7 {[%emt 0:00:05]} 36. Kg2 {[%emt 0:00:49]} Nc5 {[%emt 0:00:08]} 37. Nxc5 {[%emt 0:00:01]} Rxa7 {[%emt 0:00:02]} 38. Ne4 {[%emt 0:00:01]} Ra4 {[%emt 0:00:24]} 39. f3 {[%emt 0:01:11]} Ra1 {[%emt 0:00:11]} 40. g5 {[%emt 0:00:07]} h6 {[%emt 0:00:17]} 41. h4 {[%emt 0:00:03]} hxg5 {[%emt 0:00:01]} 42. hxg5 {[%emt 0:00:01]} Kf8 {[%emt 0:00:01]} 43. Kg3 {[%emt 0:00:01]} Ke7 {[%emt 0:00:01]} 44. Kf4 {[%emt 0:00:23]} Ke6 {[%emt 0:00:06]} 45. Nf6 {[%emt 0:00:23]} Ra5 {[%emt 0:00:09]} 46. Ne4 {[%emt 0:00:08]} Rf5+ {[%emt 0:00:04]} 47. Kg4 {[%emt 0:00:05]} Ke5 {[%emt 0:00:26]} 48. Kg3 {[%emt 0:00:17]} Rf4 {[%emt 0:00:55]} 49. Nf2 {[%emt 0:01:15]} Ra4 {[%emt 0:00:07]} 50. Ng4+ Kf5 {[%emt 0:00:07]} 51. Nh6+ {[%emt 0:00:11]} Ke6 {[%emt 0:01:15]} 52. Ng4 {[%emt 0:00:07]} Ra5 {[%emt 0:00:12]} 53. Kh4 {[%emt 0:00:10]} Ra1 {[%emt 0:00:18]} 54. Kg3 {[%emt 0:00:03]} Ra7 {[%emt 0:00:09]} 55. Kf4 {[%emt 0:00:11]} Ra5 {[%emt 0:00:13]} 56. Nf2 {[%emt 0:00:08]} Ra4+ {[%emt 0:00:28]} 57. Kg3 {[%emt 0:00:17]} Kf5 {[%emt 0:00:07]} 58. Nh3 {[%emt 0:00:02]} Ra8 {[%emt 0:00:16]} 59. Kg2 {[%emt 0:00:07]} Rh8 {[%emt 0:00:02]} 60. Kg3 {[%emt 0:00:12]} Rxh3+ {[%emt 0:00:11]} 61. Kxh3 {[%emt 0:00:01]} Kxg5 {[%emt 0:00:07]} 62. Kg3 {[%emt 0:00:14]} Kf5 {[%emt 0:00:01]} 63. Kf2 {[%emt 0:00:23]} Kf4 {[%emt 0:00:01]} 64. Kg2 {[%emt 0:00:10]} Ke3 {[%emt 0:00:03]} 65. Kg3 {[%emt 0:00:01]} f5 {[%emt 0:00:01]} 0-1

[Event "Moscow Rapid-ch 2018"]
[Site "Moscow"]
[Date "2018.12.09"]
[Round "10"]
[White "Matyunin, Maxim"]
[Black "Kornilovich, Dmitry"]
[Result "0-1"]
[ECO "A48"]
[WhiteElo "2218"]
[BlackElo "2133"]
[Annotator "NA"]
[PlyCount "126"]
[EventDate "2018.12.08"]
[EventType "swiss"]
[EventCountry "RUS"]
[SourceTitle "playchess.com"]
[Source "ChessBase"]
[SourceQuality "1"]
[TimeControl "900+10"]

1. d4 {[%emt 0:00:00]} Nf6 {[%emt 0:00:00]} 2. Nf3 {[%emt 0:00:00]} g6 {[%emt 0:00:00]} 3. c4 {[%emt 0:00:00]} Bg7 {[%emt 0:00:00]} 4. Nc3 {[%emt 0:00:00]} O-O {[%emt 0:00:00]} 5. Bg5 {[%emt 0:00:00]} h6 {[%emt 0:00:08]} 6. Bh4 {[%emt 0:00:00]} d6 {[%emt 0:00:01]} 7. e3 {[%emt 0:00:00]} Nc6 {[%emt 0:00:26]} 8. Be2 {[%emt 0:00:00]} g5 {[%emt 0:02:05]} 9. Bg3 {[%emt 0:00:00]} Bf5 {[%emt 0:00:29]} 10. O-O {[%emt 0:00:07]} Nh5 {[%emt 0:00:13]} 11. d5 {[%emt 0:00:11]} Nb8 {[%emt 0:00:53]} 12. Nxg5 {[%emt 0:00:29]} Nxg3 {[%emt 0:01:06]} 13. fxg3 {[%emt 0:00:02]} Bg6 {[%emt 0:00:31]} 14. Nf3 {[%emt 0:00:03]} e6 {[%emt 0:00:47]} 15. Nh4 {[%emt 0:00:08]} Qg5 {[%emt 0:00:09]} 16. Qd2 {[%emt 0:00:29]} Bh7 {[%emt 0:00:03]} 17. dxe6 {[%emt 0:00:13]} fxe6 {[%emt 0:00:05]} 18. Rxf8+ {[%emt 0:00:03]} Bxf8 {[%emt 0:00:21]} 19. Bf3 {[%emt 0:00:10]} Nc6 {[%emt 0:00:13]} 20. Be4 {[%emt 0:00:36]} Bxe4 21. Nxe4 {[%emt 0:00:02]} Qe5 {[%emt 0:00:40]} 22. Qd3 {[%emt 0:01:00]} Nb4 {[%emt 0:01:26]} 23. Qb1 {[%emt 0:01:56]} Bg7 {[%emt 0:00:17]} 24. Ng6 {[%emt 0:00:57]} Qh5 {[%emt 0:01:36]} 25. Nf4 {[%emt 0:00:27]} Qf5 {[%emt 0:00:07]} 26. a3 {[%emt 0:01:10]} Nc6 {[%emt 0:00:00]} 27. Nf2 {[%emt 0:04:54]} Qf7 {[%emt 0:01:18]} 28. Qe4 {[%emt 0:00:19]} Re8 {[%emt 0:01:17]} 29. Rf1 {[%emt 0:00:11]} Ne5 {[%emt 0:01:35]} 30. N2d3 {[%emt 0:00:42]} Nxd3 {[%emt 0:00:17]} 31. Nxd3 {[%emt 0:00:06]} Qh5 {[%emt 0:00:19]} 32. Qxb7 {[%emt 0:00:30]} d5 {[%emt 0:00:32]} 33. Qc6 {[%emt 0:00:42]} dxc4 {[%emt 0:00:22]} 34. g4 {[%emt 0:00:59]} Qg6 {[%emt 0:00:01]} 35. Nf4 {[%emt 0:00:05]} Qf7 {[%emt 0:00:04]} 36. Nh5 {[%emt 0:00:53]} Qe7 {[%emt 0:00:01]} 37. Qxc4 {[%emt 0:00:01]} Bxb2 {[%emt 0:00:49]} 38. Qe4 {[%emt 0:00:16]} Qh7 {[%emt 0:01:19]} 39. Qb4 {[%emt 0:01:39]} Bh8 {[%emt 0:01:16]} 40. Qb5 {[%emt 0:00:06]} Rd8 {[%emt 0:00:25]} 41. Qc6 {[%emt 0:00:08]} Qe7 {[%emt 0:00:21]} 42. Qe4 {[%emt 0:00:01]} Bg7 {[%emt 0:00:16]} 43. Nf4 {[%emt 0:00:06]} e5 {[%emt 0:00:09]} 44. Qc4+ {[%emt 0:00:17]} Kh7 {[%emt 0:00:00]} 45. Nh5 {[%emt 0:00:07]} Rf8 {[%emt 0:00:09]} 46. Rc1 {[%emt 0:00:15]} Rf7 {[%emt 0:00:13]} 47. h3 {[%emt 0:00:03]} Bh8 {[%emt 0:00:06]} 48. Qe4+ {[%emt 0:00:02]} Kg8 {[%emt 0:00:02]} 49. Rc6 {[%emt 0:00:04]} Bg7 {[%emt 0:00:21]} 50. Rg6 {[%emt 0:00:03]} Qxa3 {[%emt 0:00:18]} 51. Qxe5 {[%emt 0:00:12]} Qe7 {[%emt 0:00:09]} 52. Qd5 {[%emt 0:01:30]} Kh7 {[%emt 0:00:11]} 53. Re6 {[%emt 0:00:07]} Qg5 {[%emt 0:00:13]} 54. Qe4+ {[%emt 0:00:24]} Kg8 {[%emt 0:00:01]} 55. Nxg7 {[%emt 0:00:21]} Kxg7 {[%emt 0:00:07]} 56. Qd4+ {[%emt 0:00:04]} Kh7 {[%emt 0:00:03]} 57. Qe4+ {[%emt 0:00:23]} Kg7 {[%emt 0:00:02]} 58. Re5 {[%emt 0:00:27]} Qh4 {[%emt 0:00:19]} 59. Qd4 {[%emt 0:00:09]} Qf2+ {[%emt 0:00:11]} 60. Kh2 {[%emt 0:00:01]} Qf6 {[%emt 0:00:20]} 61. Qe4 {[%emt 0:00:12]} Qd6 {[%emt 0:00:07]} 62. Kg1 {[%emt 0:00:15]} Qd1+ {[%emt 0:00:04]} 63. Kh2 {[%emt 0:00:01]} Qd6 {[%emt 0:00:00]} 0-1

[Event "Moscow Rapid-ch 2018"]
[Site "Moscow"]
[Date "2018.12.09"]
[Round "10"]
[White "Chasovnikova, Eugenia"]
[Black "Martynyuk, Elizaveta"]
[Result "0-1"]
[ECO "D15"]
[WhiteElo "2201"]
[BlackElo "2128"]
[Annotator "NA"]
[PlyCount "67"]
[EventDate "2018.12.08"]
[EventType "swiss"]
[EventCountry "RUS"]
[SourceTitle "playchess.com"]
[Source "ChessBase"]
[SourceQuality "1"]
[TimeControl "900+10"]

1. d4 {[%emt 0:00:00]} d5 {[%emt 0:00:34]} 2. c4 {[%emt 0:00:00]} c6 {[%emt 0:00:01]} 3. Nf3 {[%emt 0:00:00]} Nf6 {[%emt 0:00:02]} 4. Nc3 {[%emt 0:00:00]} dxc4 {[%emt 0:00:01]} 5. g3 {[%emt 0:00:13]} e6 {[%emt 0:00:05]} 6. Bg2 {[%emt 0:00:01]} c5 {[%emt 0:00:02]} 7. Be3 {[%emt 0:02:05]} Ng4 {[%emt 0:00:31]} 8. Bg5 {[%emt 0:02:28]} Be7 {[%emt 0:00:06]} 9. Bxe7 {[%emt 0:00:16]} Qxe7 {[%emt 0:00:03]} 10. Qa4+ {[%emt 0:00:49]} Bd7 {[%emt 0:00:26]} 11. Qxc4 {[%emt 0:00:08]} cxd4 {[%emt 0:00:10]} 12. Nxd4 {[%emt 0:01:39]} Ne5 {[%emt 0:00:08]} 13. Qc7 {[%emt 0:02:01]} Nbc6 {[%emt 0:00:27]} 14. Nxc6 {[%emt 0:00:18]} Bxc6 {[%emt 0:00:37]} 15. Qxe5 {[%emt 0:00:43]} Bxg2 {[%emt 0:00:04]} 16. Rg1 {[%emt 0:00:08]} Bc6 {[%emt 0:00:07]} 17. Qxg7 {[%emt 0:00:13]} O-O-O {[%emt 0:00:04]} 18. Qe5 {[%emt 0:00:45]} Qb4 {[%emt 0:00:31]} 19. Rb1 {[%emt 0:00:20]} Rhg8 {[%emt 0:00:28]} 20. f3 {[%emt 0:00:19]} Rd5 {[%emt 0:00:39]} 21. Qe3 {[%emt 0:00:26]} Rh5 {[%emt 0:00:56]} 22. h4 {[%emt 0:01:11]} a6 {[%emt 0:00:57]} 23. a3 {[%emt 0:00:05]} Qd6 {[%emt 0:00:14]} 24. Rd1 {[%emt 0:00:42]} Qc7 {[%emt 0:00:13]} 25. Kf2 {[%emt 0:00:54]} b6 {[%emt 0:00:45]} 26. Ne4 {[%emt 0:00:09]} Rg6 {[%emt 0:01:15]} 27. Rc1 {[%emt 0:00:29]} Kb7 {[%emt 0:00:20]} 28. Rgd1 {[%emt 0:00:15]} Rd5 {[%emt 0:00:54]} 29. Rh1 {[%emt 0:01:11]} f5 {[%emt 0:00:09]} 30. h5 {[%emt 0:00:27]} Rg8 {[%emt 0:00:50]} 31. Ng5 {[%emt 0:00:51]} h6 {[%emt 0:00:05]} 32. Rxc6 {[%emt 0:00:39]} Qxc6 {[%emt 0:00:12]} 33. Nf7 {[%emt 0:00:22]} Qc7 {[%emt 0:01:07]} 34. f4 {[%emt 0:00:33]} 0-1

[Event "Moscow Rapid-ch 2018"]
[Site "Moscow"]
[Date "2018.12.09"]
[Round "10"]
[White "Strutinskaia, Galina"]
[Black "Borisova, Ekaterina"]
[Result "0-1"]
[ECO "A01"]
[WhiteElo "2201"]
[BlackElo "2244"]
[Annotator "NA"]
[PlyCount "144"]
[EventDate "2018.12.08"]
[EventType "swiss"]
[EventCountry "RUS"]
[SourceTitle "playchess.com"]
[Source "ChessBase"]
[SourceQuality "1"]
[TimeControl "900+10"]

1. b3 {[%emt 0:00:25]} d5 {[%emt 0:00:00]} 2. Bb2 {[%emt 0:00:01]} Bg4 {[%emt 0:00:00]} 3. f4 {[%emt 0:00:07]} c5 {[%emt 0:01:10]} 4. Nf3 {[%emt 0:00:02]} Nc6 {[%emt 0:00:07]} 5. e3 {[%emt 0:00:03]} Nf6 {[%emt 0:00:12]} 6. h3 {[%emt 0:00:06]} Bxf3 {[%emt 0:00:14]} 7. Qxf3 {[%emt 0:00:02]} Qd6 {[%emt 0:00:18]} 8. Bb5 {[%emt 0:00:03]} a6 {[%emt 0:00:25]} 9. Bxc6+ {[%emt 0:00:02]} Qxc6 {[%emt 0:00:01]} 10. g4 {[%emt 0:00:21]} h6 {[%emt 0:01:21]} 11. d3 {[%emt 0:00:12]} e6 {[%emt 0:00:37]} 12. Nd2 {[%emt 0:00:13]} O-O-O {[%emt 0:00:26]} 13. O-O-O {[%emt 0:00:23]} Nd7 {[%emt 0:01:03]} 14. Rhf1 {[%emt 0:00:58]} f6 {[%emt 0:00:23]} 15. h4 {[%emt 0:00:25]} Be7 {[%emt 0:00:07]} 16. h5 {[%emt 0:00:08]} Rhf8 {[%emt 0:00:26]} 17. Rde1 {[%emt 0:00:48]} Kb8 {[%emt 0:01:18]} 18. Kb1 {[%emt 0:00:28]} Ka7 {[%emt 0:00:02]} 19. c4 {[%emt 0:00:02]} Nb6 {[%emt 0:00:24]} 20. Re2 {[%emt 0:00:22]} Qd7 {[%emt 0:01:03]} 21. e4 {[%emt 0:00:33]} dxc4 {[%emt 0:01:35]} 22. dxc4 {[%emt 0:00:01]} e5 {[%emt 0:00:15]} 23. f5 {[%emt 0:00:33]} Qd3+ {[%emt 0:00:12]} 24. Qxd3 {[%emt 0:00:09]} Rxd3 {[%emt 0:00:02]} 25. Rf3 {[%emt 0:00:14]} Rfd8 {[%emt 0:00:10]} 26. Kc2 {[%emt 0:00:01]} Rxf3 {[%emt 0:00:22]} 27. Nxf3 {[%emt 0:00:01]} Na8 {[%emt 0:00:36]} 28. Nh4 {[%emt 0:00:24]} b5 {[%emt 0:01:38]} 29. Ng6 {[%emt 0:00:05]} Bd6 {[%emt 0:01:17]} 30. cxb5 {[%emt 0:00:25]} axb5 {[%emt 0:00:03]} 31. Rd2 {[%emt 0:00:01]} Kb7 {[%emt 0:00:17]} 32. Nf8 {[%emt 0:00:05]} Nc7 {[%emt 0:00:14]} 33. a4 {[%emt 0:00:30]} bxa4 {[%emt 0:00:40]} 34. bxa4 {[%emt 0:00:01]} Kc6 {[%emt 0:00:03]} 35. Ng6 {[%emt 0:00:36]} Ra8 {[%emt 0:00:06]} 36. Kb3 {[%emt 0:00:02]} Rb8+ {[%emt 0:00:04]} 37. Kc2 {[%emt 0:00:10]} Rb4 {[%emt 0:00:18]} 38. Re2 {[%emt 0:00:12]} Rxa4 {[%emt 0:00:07]} 39. Nh4 {[%emt 0:00:00]} Nb5 {[%emt 0:00:45]} 40. Re3 {[%emt 0:00:03]} Nd4+ {[%emt 0:00:13]} 41. Kc1 {[%emt 0:00:04]} c4 {[%emt 0:00:28]} 42. Nf3 {[%emt 0:00:07]} Bc5 {[%emt 0:00:05]} 43. Kb1 {[%emt 0:00:21]} Nxf3 {[%emt 0:00:40]} 44. Rxf3 {[%emt 0:00:01]} Bd4 {[%emt 0:00:02]} 45. Ba3 {[%emt 0:00:35]} Kb5 {[%emt 0:00:23]} 46. Bf8 {[%emt 0:00:07]} Ra7 {[%emt 0:00:13]} 47. Ra3 {[%emt 0:01:21]} Rd7 {[%emt 0:00:30]} 48. Ra8 {[%emt 0:00:17]} Rb7 {[%emt 0:01:03]} 49. Kc2 {[%emt 0:00:03]} c3 {[%emt 0:00:10]} 50. Ba3 {[%emt 0:00:31]} Rc7 {[%emt 0:00:32]} 51. Rb8+ {[%emt 0:00:20]} Kc6 {[%emt 0:00:08]} 52. Ra8 {[%emt 0:00:21]} Kb7 {[%emt 0:00:18]} 53. Rg8 {[%emt 0:00:07]} Kc6 {[%emt 0:00:19]} 54. Bb4 {[%emt 0:00:35]} Kb5 {[%emt 0:00:16]} 55. Rb8+ {[%emt 0:00:09]} Ka6 {[%emt 0:00:07]} 56. Ra8+ {[%emt 0:00:16]} Kb7 {[%emt 0:00:07]} 57. Rg8 {[%emt 0:00:05]} Ka6 {[%emt 0:00:19]} 58. Ra8+ {[%emt 0:00:04]} Kb5 {[%emt 0:00:02]} 59. Rb8+ {[%emt 0:00:01]} Ka4 {[%emt 0:00:03]} 60. Bd6 {[%emt 0:01:02]} Rd7 {[%emt 0:00:07]} 61. Bf8 {[%emt 0:00:08]} Rc7 {[%emt 0:00:09]} 62. Bd6 {[%emt 0:00:11]} Rd7 {[%emt 0:00:14]} 63. Bb4 {[%emt 0:00:38]} Ba7 {[%emt 0:00:22]} 64. Rc8 {[%emt 0:00:30]} Kxb4 {[%emt 0:00:06]} 65. Rxc3 {[%emt 0:00:02]} Bd4 {[%emt 0:00:08]} 66. Rc8 {[%emt 0:00:01]} Be3 {[%emt 0:00:03]} 67. Rg8 {[%emt 0:00:02]} Bg5 {[%emt 0:00:03]} 68. Rb8+ {[%emt 0:00:03]} Kc5 {[%emt 0:00:01]} 69. Ra8 {[%emt 0:00:02]} Rd4 {[%emt 0:00:02]} 70. Rg8 Rxe4 {[%emt 0:00:03]} 71. Rxg7 {[%emt 0:00:07]} Rxg4 {[%emt 0:00:01]} 72. Ra7 {[%emt 0:00:01]} Rh4 {[%emt 0:00:03]} 0-1

[Event "Moscow Rapid-ch 2018"]
[Site "Moscow"]
[Date "2018.12.09"]
[Round "10"]
[White "Volodin, Viktor"]
[Black "Gorbatov, Alexej"]
[Result "0-1"]
[ECO "A05"]
[WhiteElo "2175"]
[BlackElo "2389"]
[Annotator "NA"]
[PlyCount "92"]
[EventDate "2018.12.08"]
[EventType "swiss"]
[EventCountry "RUS"]
[SourceTitle "playchess.com"]
[Source "ChessBase"]
[SourceQuality "1"]
[TimeControl "900+10"]

1. Nf3 Nf6 2. c4 a6 3. g3 b5 4. b3 Bb7 5. Bg2 g6 6. Bb2 Bg7 7. O-O c5 8. Nc3 Qb6 9. Nd5 Bxd5 10. cxd5 d6 11. e4 O-O 12. d3 Nbd7 13. Qe2 Ra7 14. Nd2 e6 15. dxe6 fxe6 16. Kh1 d5 17. e5 Ne8 18. d4 c4 19. b4 a5 20. Bc3 axb4 21. Bxb4 Qxd4 22. Bxf8 Bxf8 23. Nf3 Qb6 24. Ng5 Ng7 25. f4 Be7 26. g4 Ra3 27. Nf3 Nc5 28. Nd4 Nd3 29. Nc2 Ra4 30. f5 gxf5 31. gxf5 Nxf5 32. Bxd5 exd5 33. Qg4+ Ng7 34. Nd4 Nxe5 35. Qc8+ Qd8 36. Nc6 Nxc6 37. Qxc6 Qa8 38. Qxb5 d4+ 39. Kg1 d3 40. Rab1 Rxa2 41. Qxc4+ Kh8 42. Qxa2 Bc5+ 43. Rf2 Qxa2 44. Rb8+ Ne8 45. Rxe8+ Kg7 46. Re7+ Kg6 0-1

[Event "Moscow Rapid-ch 2018"]
[Site "Moscow"]
[Date "2018.12.09"]
[Round "10"]
[White "Girshgorn, Leonid"]
[Black "Stukan, Martin"]
[Result "1-0"]
[ECO "A45"]
[WhiteElo "2038"]
[BlackElo "2142"]
[Annotator "NA"]
[PlyCount "111"]
[EventDate "2018.12.08"]
[EventType "swiss"]
[EventCountry "RUS"]
[SourceTitle "playchess.com"]
[Source "ChessBase"]
[SourceQuality "1"]
[TimeControl "900+10"]

1. d4 {[%emt 0:00:00]} Nf6 {[%emt 0:00:00]} 2. Bf4 {[%emt 0:00:00]} g6 {[%emt 0:00:00]} 3. Nc3 {[%emt 0:00:00]} Bg7 {[%emt 0:00:04]} 4. e4 {[%emt 0:00:00]} d6 {[%emt 0:00:01]} 5. Qd2 {[%emt 0:00:00]} a6 {[%emt 0:00:18]} 6. f3 {[%emt 0:00:00]} b5 {[%emt 0:00:03]} 7. Bh6 {[%emt 0:00:07]} O-O {[%emt 0:01:27]} 8. O-O-O {[%emt 0:00:06]} b4 {[%emt 0:00:32]} 9. Na4 {[%emt 0:00:04]} a5 {[%emt 0:02:34]} 10. h4 {[%emt 0:00:08]} Bd7 {[%emt 0:00:01]} 11. b3 {[%emt 0:00:05]} Qe8 {[%emt 0:01:37]} 12. h5 {[%emt 0:00:21]} Bxa4 {[%emt 0:00:04]} 13. hxg6 fxg6 {[%emt 0:00:23]} 14. Bxg7 {[%emt 0:00:13]} Kxg7 {[%emt 0:00:23]} 15. Qh6+ {[%emt 0:00:01]} Kg8 {[%emt 0:00:01]} 16. bxa4 {[%emt 0:01:45]} Qf7 {[%emt 0:01:06]} 17. Kb1 {[%emt 0:00:51]} Nbd7 {[%emt 0:00:46]} 18. Nh3 {[%emt 0:00:05]} Qg7 {[%emt 0:00:29]} 19. Qxg7+ Kxg7 {[%emt 0:00:03]} 20. Ng5 {[%emt 0:00:16]} Rfc8 {[%emt 0:00:39]} 21. Ne6+ {[%emt 0:00:59]} Kh8 {[%emt 0:00:08]} 22. Nf4 {[%emt 0:01:07]} Nf8 {[%emt 0:00:37]} 23. e5 {[%emt 0:00:12]} N6d7 {[%emt 0:00:42]} 24. Bd3 {[%emt 0:00:06]} Kg7 {[%emt 0:00:13]} 25. exd6 {[%emt 0:01:18]} exd6 {[%emt 0:00:14]} 26. Rde1 {[%emt 0:00:09]} Re8 {[%emt 0:00:23]} 27. Nd5 {[%emt 0:00:06]} Rxe1+ {[%emt 0:02:06]} 28. Rxe1 {[%emt 0:00:01]} c6 {[%emt 0:00:11]} 29. Nc7 {[%emt 0:00:05]} Ra7 {[%emt 0:01:09]} 30. Ne8+ {[%emt 0:00:01]} Kh8 {[%emt 0:00:09]} 31. Nxd6 {[%emt 0:00:03]} Nb6 {[%emt 0:00:07]} 32. Re8 {[%emt 0:00:55]} Kg7 {[%emt 0:00:09]} 33. Be4 {[%emt 0:00:43]} Rd7 {[%emt 0:00:29]} 34. Nc8 {[%emt 0:00:21]} Nxa4 {[%emt 0:00:36]} 35. Re7+ {[%emt 0:00:26]} Rxe7 {[%emt 0:00:03]} 36. Nxe7 {[%emt 0:00:01]} c5 {[%emt 0:00:35]} 37. dxc5 {[%emt 0:00:23]} Nxc5 {[%emt 0:00:01]} 38. Nc6 {[%emt 0:00:01]} Nfe6 {[%emt 0:00:47]} 39. Nxa5 {[%emt 0:00:08]} Nf4 {[%emt 0:00:01]} 40. Nc6 {[%emt 0:04:09]} Nxg2 {[%emt 0:00:20]} 41. Nxb4 {[%emt 0:00:07]} Nf4 {[%emt 0:01:07]} 42. Nd5 {[%emt 0:01:02]} Nxe4 {[%emt 0:00:25]} 43. Nxf4 {[%emt 0:00:05]} Nd2+ {[%emt 0:00:22]} 44. Kb2 {[%emt 0:00:05]} g5 {[%emt 0:00:04]} 45. Ne2 {[%emt 0:00:39]} h5 {[%emt 0:00:13]} 46. a4 {[%emt 0:00:02]} h4 {[%emt 0:00:19]} 47. Ng1 {[%emt 0:00:13]} Kf6 {[%emt 0:00:28]} 48. Kc3 {[%emt 0:00:14]} Nf1 {[%emt 0:00:09]} 49. a5 {[%emt 0:00:14]} Ne3 {[%emt 0:00:14]} 50. a6 {[%emt 0:00:13]} Nd5+ {[%emt 0:00:02]} 51. Kc4 {[%emt 0:00:21]} Ke6 {[%emt 0:00:22]} 52. Kc5 {[%emt 0:00:27]} Nc7 {[%emt 0:00:06]} 53. a7 {[%emt 0:00:11]} Kd7 {[%emt 0:00:06]} 54. Kb6 Kc8 55. Kc6 {[%emt 0:00:13]} Na8 {[%emt 0:00:02]} 56. Nh3 {[%emt 0:00:01]} 1-0

[Event "Moscow Rapid-ch 2018"]
[Site "Moscow"]
[Date "2018.12.09"]
[Round "10"]
[White "Glibka, Yulia"]
[Black "Paramzina, Anastasya"]
[Result "1-0"]
[ECO "A48"]
[WhiteElo "1979"]
[BlackElo "2229"]
[Annotator "NA"]
[PlyCount "71"]
[EventDate "2018.12.08"]
[EventType "swiss"]
[EventCountry "RUS"]
[SourceTitle "playchess.com"]
[Source "ChessBase"]
[SourceQuality "1"]
[TimeControl "900+10"]

1. d4 Nf6 2. Nf3 g6 3. c3 Bg7 4. Bf4 d6 5. Nbd2 O-O 6. e3 Nc6 7. Bc4 a5 8. a4 Bg4 9. Qb3 Bxf3 10. Nxf3 Qd7 11. Ng5 e5 12. dxe5 dxe5 13. Bg3 Rab8 14. O-O Qe7 15. Qb5 h6 16. Nf3 Ne4 17. Bd5 Nd6 18. Qc5 Nd8 19. Qxa5 Kh7 20. Qb4 f5 21. h4 Bf6 22. a5 N8f7 23. Bxf7 Rxf7 24. a6 Rff8 25. a7 Ra8 26. Ra5 b6 27. Ra6 e4 28. Bxd6 cxd6 29. Nd4 Bxh4 30. g3 Qg5 31. Ne6 Qg4 32. Nxf8+ Kg7 33. Ne6+ Kf7 34. Qxd6 Be7 35. Qd5 Qe2 36. Nf4+ 1-0

[Event "Moscow Rapid-ch 2018"]
[Site "Moscow"]
[Date "2018.12.09"]
[Round "11"]
[White "Zakhartsov, Vladimir"]
[Black "Pavlov, Danila"]
[Result "1-0"]
[ECO "E67"]
[WhiteElo "2486"]
[BlackElo "2323"]
[Annotator "ChessBase"]
[PlyCount "99"]
[EventDate "2018.12.08"]
[EventType "swiss"]
[EventCountry "RUS"]
[SourceTitle "playchess.com"]
[Source "ChessBase"]
[SourceQuality "1"]
[TimeControl "900+10"]

1. c4 {[%emt 0:00:00]} Nf6 {[%emt 0:00:00]} 2. Nc3 {[%emt 0:00:01]} g6 {[%emt 0:00:00]} 3. d4 {[%emt 0:00:27]} Bg7 {[%emt 0:00:00]} 4. g3 {[%emt 0:00:19]} d6 {[%emt 0:00:00]} 5. Bg2 {[%emt 0:00:02]} O-O {[%emt 0:00:00]} 6. Nf3 {[%emt 0:00:05]} Nbd7 {[%emt 0:00:15]} 7. O-O {[%emt 0:00:06]} e5 {[%emt 0:00:03]} 8. b3 {[%emt 0:00:12]} exd4 {[%emt 0:00:33]} 9. Nxd4 {[%emt 0:00:07]} Re8 {[%emt 0:00:01]} 10. Bb2 {[%emt 0:00:09]} Rb8 {[%emt 0:00:03]} 11. Qc2 {[%emt 0:00:22]} a6 {[%emt 0:00:06]} 12. Rad1 {[%emt 0:00:06]} c5 {[%emt 0:04:21]} 13. Nf3 {[%emt 0:00:02]} b5 {[%emt 0:01:59]} 14. cxb5 {[%emt 0:01:19]} axb5 {[%emt 0:00:40]} 15. Rxd6 {[%emt 0:00:09]} Qe7 {[%emt 0:03:53]} 16. Rd2 {[%emt 0:03:25]} b4 {[%emt 0:00:11]} 17. Na4 {[%emt 0:00:05]} Ne4 {[%emt 0:01:14]} 18. Rd3 {[%emt 0:01:43]} Ndf6 {[%emt 0:00:44]} 19. Be5 {[%emt 0:00:44]} Rb5 {[%emt 0:01:06]} 20. Re3 {[%emt 0:01:34]} Bf5 {[%emt 0:00:40]} 21. Bxf6 {[%emt 0:00:41]} Qxf6 {[%emt 0:00:13]} 22. Nh4 {[%emt 0:01:21]} Nd6 {[%emt 0:01:25]} 23. Nxf5 {[%emt 0:00:21]} Qxf5 {[%emt 0:00:11]} 24. Qxf5 {[%emt 0:00:47]} gxf5 {[%emt 0:00:01]} 25. Rxe8+ {[%emt 0:00:11]} Nxe8 {[%emt 0:00:01]} 26. Rc1 {[%emt 0:00:07]} Bf8 {[%emt 0:00:01]} 27. Bc6 {[%emt 0:00:30]} Rb8 {[%emt 0:00:13]} 28. Nxc5 {[%emt 0:00:13]} Bxc5 {[%emt 0:01:03]} 29. Rxc5 {[%emt 0:00:03]} Rc8 {[%emt 0:00:01]} 30. Re5 {[%emt 0:00:10]} Nd6 {[%emt 0:00:31]} 31. Bf3 {[%emt 0:00:11]} Rc2 {[%emt 0:00:07]} 32. Rd5 {[%emt 0:00:22]} Ne4 {[%emt 0:00:01]} 33. Bxe4 {[%emt 0:00:26]} fxe4 {[%emt 0:00:01]} 34. e3 {[%emt 0:00:02]} Rxa2 {[%emt 0:00:11]} 35. Rb5 {[%emt 0:00:05]} Kg7 {[%emt 0:00:05]} 36. g4 {[%emt 0:00:22]} Ra6 {[%emt 0:00:44]} 37. Kg2 {[%emt 0:00:44]} Kg6 {[%emt 0:00:05]} 38. Kg3 {[%emt 0:00:12]} Re6 {[%emt 0:00:04]} 39. Rxb4 {[%emt 0:00:09]} h5 {[%emt 0:00:06]} 40. h3 {[%emt 0:00:17]} hxg4 {[%emt 0:00:08]} 41. hxg4 {[%emt 0:00:02]} Kg5 {[%emt 0:00:35]} 42. Rb5+ {[%emt 0:00:08]} Kg6 {[%emt 0:00:01]} 43. b4 {[%emt 0:00:12]} Rf6 {[%emt 0:00:01]} 44. Re5 {[%emt 0:00:16]} Rb6 {[%emt 0:00:07]} 45. Rxe4 {[%emt 0:00:02]} Rb5 {[%emt 0:00:01]} 46. f4 {[%emt 0:00:16]} Rb6 {[%emt 0:00:03]} 47. g5 {[%emt 0:00:05]} Kh5 {[%emt 0:00:11]} 48. Kf3 {[%emt 0:00:08]} Rb5 {[%emt 0:00:11]} 49. Rc4 {[%emt 0:00:08]} Rb6 {[%emt 0:00:03]} 50. e4 {[%emt 0:00:17]} 1-0